Cogmind - Beta 13 @@@ ROGUE MODE // 2024.07.12 @ 14:11:23 Player: ThatBishHoly Result: Destroyed by G-47 Trooper with Particle Gun Performance ------------- Evolutions (2) 1000 Regions Visited (4) 800 Robots Destroyed (38) 190 Value Destroyed (746) 746 Prototype IDs (0) 0 Alien Tech Used (0) 0 Bonus (-20) -20 TOTAL SCORE: 2716 Bonus ------- High Alert Combat Kills 8 Follower Combat Kills 91 Friendly Fire -119 Cogmind --------- Core Integrity 0/550 Matter 256/300 Energy 95/100 System Corruption 0% Temperature Cool (18) Movement Core (50) Location -8/Materials Parts ------- > --- POWER (1) -------- (None) > --- PROPULSION (4) --- (None) > --- UTILITY (4) ------ (None) > --- WEAPON (2) ------- Heavy Flail > --- INVENTORY (5) ---- Large Storage Unit Experimental Sensor Array Tractor Beam Datajack Peak State ------------ > --- POWER ------------ Light Deuterium Engine > --- PROPULSION ------- Improved Aluminum Leg Improved Aluminum Leg Carbon-fiber Leg > --- UTILITY ---------- Cryofiber Web Improved Heat Sink Large Storage Unit Targeting Computer > --- WEAPON ----------- Shock Rifle Medium Laser > --- INVENTORY -------- Ion Engine Sensor Array Experimental Sensor Array Tractor Beam Medium Laser Datajack Heavy Flail Katana [Rating: 24] Favorites ----------- Power Ion Engine Engine Ion Engine Propulsion Wheel Treads Light Treads Leg Aluminum Leg Wheel Wheel Utility Large Storage Unit Device Heat Sink Storage Large Storage Unit Processor Targeting Computer Protection Light Armor Plating Weapon Medium Laser Energy Gun Medium Laser Launcher Rocket Launcher Impact Weapon Heavy Flail Slashing Weapon Katana Build | -11 -10 -10 -9 -8 ------- Run | Yrd Mat Min Mat Mat Slots Evolved 4 | . . . 2 2 Power . | . . . . . Propulsion 2 | . . . 1 1 Utility 2 | . . . 1 1 Weapon . | . . . . . Parts Attached 45 | 9 7 8 6 15 Power 7 | 2 . 2 1 2 Engine 7 | 2 . 2 1 2 Core . | . . . . . Reactor . | . . . . . Propulsion 12 | 4 . 4 2 2 Treads 2 | 2 . . . . Leg 6 | . . 2 2 2 Wheel 4 | 2 . 2 . . Hover . | . . . . . Flight . | . . . . . Utility 12 | 1 3 1 2 5 Device 5 | . . 1 1 3 Storage 3 | 1 1 . 1 . Processor 2 | . . . . 2 Hackware . | . . . . . Protection 2 | . 2 . . . Artifact . | . . . . . Weapon 14 | 2 4 1 1 6 Energy Gun 11 | 2 4 1 . 4 Energy Cannon . | . . . . . Ballistic Gun . | . . . . . Ballistic Cannon . | . . . . . Launcher 1 | . . . 1 . Special Weapon . | . . . . . Impact Weapon 1 | . . . . 1 Slashing Weapon 1 | . . . . 1 Piercing Weapon . | . . . . . Special Melee Weapon . | . . . . . Unidentified Prototypes . | . . . . . Parts Lost 24 | . 5 3 1 15 Power 3 | . 1 . . 2 Propulsion 8 | . 2 1 1 4 Utility 5 | . 1 1 . 3 Weapon 8 | . 1 1 . 6 Highest Loss Streak 7 | . 5 2 1 7 To Critical Strikes . | . . . . . Average Slot Usage (%) 81 | . 60 98 91 80 Engine 8 | . 2 13 11 7 Leg 10 | . . 5 25 21 Wheel 9 | . 6 21 . . Device 10 | . . 11 22 16 Storage 12 | . 14 14 11 8 Processor 1 | . . . . 9 Protection 3 | . 8 2 . . Energy Gun 21 | . 27 27 11 12 Launcher 2 | . . . 11 3 Naked Turns . | . . . . . Heaviest Build 35 | 12 29 32 35 35 Greatest Support 41 | 40 32 20 38 41 Greatest Overweight (x) 9 | . 8 2 3 9 Average Overweight (x) 1 | . 3 1 . . Largest Inventory Capacity 15 | 8 15 15 15 15 Average Capacity 14 | 7 14 15 15 14 Most Carried 9 | 4 7 7 9 9 Average Carried 4 | . 2 5 6 6 Final Capacity 15 | 8 15 15 15 5 Final Carried 8 | . 7 6 8 4 Class Distribution -------------------- 72% | Mutant 27% | Scavenger-Mutant Dominant Class ---------------- Mutant | -10/Materials Mutant | -10/Mines Scavenger-Mutant | -9/Materials Mutant | -8/Materials Resources | -11 -10 -10 -9 -8 ----------- Run | Yrd Mat Min Mat Mat Matter Collected 696 | 227 108 60 150 151 Remotely 192 | . . . 150 42 Salvage Created 1107 | 86 409 214 189 209 Parts 67 | 3 20 9 21 14 Haulers Intercepted 2 | . 2 . . . Recyclers Shooed 3 | . 3 . . . Parts Field Recycled . | . . . . . Retrieved Matter . | . . . . . Parts Self-Destructed . | . . . . . Prevented . | . . . . . Kills | -11 -10 -10 -9 -8 ------- Run | Yrd Mat Min Mat Mat Combat Hostiles Destroyed 27 | . 5 6 9 7 Melee 2 | . . . . 2 Guns 16 | . 5 5 1 5 AOE 8 | . . . 8 . Classes Destroyed 8 | 1 3 1 3 . Builder 3 | . . . 2 1 Hauler 2 | . 2 . . . Recycler 4 | 1 2 . 1 . Operator 1 | . . . 1 . Swarmer 15 | . 2 3 6 4 Grunt 6 | . 3 1 1 1 Duelist 2 | . . . 1 1 Sentry 4 | . . 2 1 1 Thug 1 | . . . 1 . Best Kill Streak 6 | 1 5 3 6 4 Combat Bots Only 5 | . 5 3 4 4 Max Kills in Single Turn 3 | 1 2 1 3 1 Gunslinging 1 | . 1 . . . Exploded 2 | . . . 2 . Melee 1 | . . . . 1 Uniques/NPCs Destroyed . | . . . . . Combat | -11 -10 -10 -9 -8 -------- Run | Yrd Mat Min Mat Mat Hostile Shots Fired 274 | . 84 28 31 131 Missed 79 | . 21 5 11 42 Damage Taken 2636 | . 722 287 361 1266 Core 854 | . 165 58 78 553 Absorbed by Shields . | . . . . . Core Remaining (%) 63 | 100 . 10 80 . Volleys Fired 95 | 5 28 15 17 30 Largest 2 | 1 2 2 2 2 Hottest 100 | 50 100 100 83 100 Shots Fired 151 | 5 46 28 34 38 Gun 133 | 5 46 28 17 37 Cannon . | . . . . . Launcher 18 | . . . 17 1 Special . | . . . . . Kinetic . | . . . . . Thermal 127 | 5 46 28 17 31 Explosive 18 | . . . 17 1 Electromagnetic 6 | . . . . 6 Robot Hit Streak 13 | 1 9 13 7 10 Robot Miss Streak 3 | 1 2 3 3 3 Penetration Max . | . . . . . Secondary Targets 4 | . 1 1 . 2 Max Gunslinging Chain 1 | . 1 1 . 1 Shots Hit Robots 108 | 3 32 22 21 30 Core Hits 69 | 2 16 11 25 15 Critical Kills . | . . . . . Critical Parts Destroyed . | . . . . . Critical Strikes 7 | . 2 1 . 4 Burn 5 | . 2 1 . 2 Sever 2 | . . . . 2 Melee Attacks 7 | . . . . 7 Impact 4 | . . . . 4 Slashing 3 | . . . . 3 Piercing . | . . . . . Sneak Attacks . | . . . . . Combat Hostiles . | . . . . . Follow-up Attacks . | . . . . . Damage Inflicted 2553 | 37 425 317 1163 611 Guns 1226 | 37 425 271 147 346 Cannons . | . . . . . Explosions 1089 | . . . 1016 73 Melee 180 | . . . . 180 Ramming 58 | . . 46 . 12 Kinetic . | . . . . . Thermal 1197 | 37 425 271 147 317 Explosive 1033 | . . . 1004 29 Electromagnetic 85 | . . . 12 73 Impact 97 | . . . . 97 Slashing 83 | . . . . 83 Piercing . | . . . . . Highest Corruption 2 | . 1 2 . . Average Corruption 1 | . 1 1 . . Corruption Purged . | . . . . . Corruption Blocked . | . . . . . Effects 8 | . 1 7 . . Message Errors 4 | . 1 3 . . Matter Fused 1 | . . 1 . . Heat Flow Errors 1 | . . 1 . . Energy Discharges 2 | . . 2 . . Overload Shots . | . . . . . Overflow Damage 34 | . . . 30 4 Projectiles . | . . . . . Explosions 34 | . . . 30 4 Melee . | . . . . . Knockbacks . | . . . . . Impact . | . . . . . Kinetic . | . . . . . Secondary . | . . . . . Self-Inflicted Damage 197 | . . 17 111 69 Shots 7 | . . . 5 2 Rammed 6 | . . 6 . . Targets Rammed 9 | . . 8 . 1 Kicked 3 | . . 2 . 1 Crushed . | . . . . . Highest Temperature 254 | 30 254 165 4 2 Average Temperature 70 | 14 82 70 1 2 Received Heat Transfer 972 | . 309 78 81 504 Effects 2 | . 2 . . . Interference 2 | . 2 . . . Siege Activations . | . . . . . Robots Corrupted . | . . . . . Combat Hostiles . | . . . . . Parts Fried . | . . . . . Impact Corruptions . | . . . . . Robots Melted 1 | . . 1 . . Combat Hostiles 1 | . . 1 . . Parts Melted 7 | . 4 1 . 2 Heat Transferred 3849 | 111 1394 888 444 1012 Parts Sabotaged . | . . . . . Parts Stolen . | . . . . . Parts Stripped . | . . . . . Power Chain Reactions 1 | . . . . 1 Alert | -11 -10 -10 -9 -8 ------- Run | Yrd Mat Min Mat Mat Peak Influence 557 | 5 90 122 557 273 Initial 235 | . 3 15 20 235 Average 105 | 2 33 71 256 180 Maximum Alert Level 2 | . . . 2 1 Low Security (%) 81 | 100 100 100 46 44 Level 1 14 | . . . 28 55 Level 2 3 | . . . 25 . Level 3 . | . . . . . Level 4 . | . . . . . Level 5 . | . . . . . High Security . | . . . . . Max Security . | . . . . . Squads Dispatched 5 | . . . 1 4 Investigation 1 | . . . . 1 Extermination . | . . . . . Reinforcement 4 | . . . 1 3 Assault . | . . . . . Garrison . | . . . . . Intercept . | . . . . . Searches Triggered . | . . . . . Construction Impeded 2 | . . . 1 1 Haulers Reinforced . | . . . . . Active Scanning Responses . | . . . . . Cargo Convoy Interrupts . | . . . . . Stealth | -11 -10 -10 -9 -8 --------- Run | Yrd Mat Min Mat Mat Distress Signals 3 | . 1 . 1 1 Communications Jammed . | . . . . . Distress Signals . | . . . . . Times Spotted 53 | . 10 7 14 22 Peak Tracking Total 9 | . 7 3 5 9 Tactical Retreats 6 | . . . 2 4 Traps | -11 -10 -10 -9 -8 ------- Run | Yrd Mat Min Mat Mat Traps Triggered 1 | . 1 . . . Indirectly . | . . . . . Trap Hack Attempts . | . . . . . Triggered . | . . . . . Disarmed . | . . . . . Reprogrammed . | . . . . . Reused . | . . . . . Traps Extracted . | . . . . . Installed . | . . . . . Triggered 1 | . . . . 1 Machines | -11 -10 -10 -9 -8 ---------- Run | Yrd Mat Min Mat Mat Machines Disabled 2 | . . . 2 . Max in Single Turn 1 | . . . 1 . Machines Repaired . | . . . . . Machines Dismantled . | . . . . . Machines Sabotaged . | . . . . . Overloaded Fab Kills . | . . . . . Hacking | -11 -10 -10 -9 -8 --------- Run | Yrd Mat Min Mat Mat Machines Accessed 4 | . 1 . 1 2 Terminals 3 | . 1 . . 2 Fabricators . | . . . . . Repair Stations . | . . . . . Recycling Units 1 | . . . 1 . Scanalyzers . | . . . . . Garrison Access . | . . . . . Total Hacks 15 | . 2 . 3 10 Successful 10 | . . . 3 7 Failed 5 | . 2 . . 3 Catastrophic . | . . . . . Database Lockouts . | . . . . . Manual . | . . . . . Terminals 12 | . 2 . . 10 Fabricators . | . . . . . Repair Stations . | . . . . . Recycling Units 3 | . . . 3 . Scanalyzers . | . . . . . Garrison Access . | . . . . . Terminal Hacks 7 | . . . . 7 Record 2 | . . . . 2 Alert Level 3 | . . . . 3 Unreport Threat 1 | . . . . 1 Zone Layout 1 | . . . . 1 Fabricator Hacks . | . . . . . Repair Station Hacks . | . . . . . Recycling Unit Hacks 3 | . . . 3 . Report Inventory 1 | . . . 1 . Retrieve Matter 2 | . . . 2 . Scanalyzer . | . . . . . Garrison Access Hacks . | . . . . . Unauthorized Hacks . | . . . . . Terminals . | . . . . . Fabricators . | . . . . . Repair Stations . | . . . . . Recycling Units . | . . . . . Scanalyzers . | . . . . . Garrison Access . | . . . . . Data Cores Recovered . | . . . . . Used . | . . . . . Hacking Detections 3 | . 1 . . 2 Full Trace Events . | . . . . . Feedback Events . | . . . . . Feedback Blocked . | . . . . . Robot Schematics Acquired . | . . . . . Robots Built . | . . . . . Authchips . | . . . . . Time . | . . . . . Total Robot Build Rating . | . . . . . Part Schematics Acquired . | . . . . . Parts Built . | . . . . . Authchips . | . . . . . Time . | . . . . . Total Part Build Rating . | . . . . . Parts Repaired . | . . . . . Time . | . . . . . Parts Recycled . | . . . . . Recycled Matter . | . . . . . Retrieved Matter . | . . . . . Retrieved Components . | . . . . . Parts Scanalyzed . | . . . . . Part Schematics Acquired . | . . . . . Parts Damaged . | . . . . . Bothacking | -11 -10 -10 -9 -8 ------------ Run | Yrd Mat Min Mat Mat Used RIF Installer . | . . . . . Robots Hacked . | . . . . . Non-combat . | . . . . . Combat . | . . . . . Robot Hacks Applied . | . . . . . Relay Couplers Released . | . . . . . Fabnet Peak Effective % . | . . . . . Robots Rewired . | . . . . . Allies Hacked . | . . . . . Hacks Repelled . | . . . . . Allies | -11 -10 -10 -9 -8 -------- Run | Yrd Mat Min Mat Mat Total Allies 1 | . . 1 . . Largest Group 1 | . . 1 1 . Highest-Rated Group 31 | . . 31 31 . Highest-Rated Ally 31 | . . 31 31 . Total Orders . | . . . . . Ally Attacks 9 | . . 5 4 . Total Damage 189 | . . 105 84 . Kills 3 | . . 1 2 . Allies Corrupted . | . . . . . Allies Melted . | . . . . . Intel | -11 -10 -10 -9 -8 ------- Run | Yrd Mat Min Mat Mat Robot Analysis Total . | . . . . . Derelict Logs Recovered . | . . . . . Drone Launches . | . . . . . Drone Recoveries . | . . . . . Exploration | -11 -10 -10 -9 -8 ------------- Run | Yrd Mat Min Mat Mat Turns Passed 2382 | 113 729 718 361 461 Spaces Moved 1172 | 72 245 437 188 230 Core 148 | 25 111 . . 12 Treads 14 | 14 . . . . Legs 469 | . . 63 188 218 Wheels 541 | 33 134 374 . . Hover . | . . . . . Flight . | . . . . . Fastest Speed 50 | 50 100 95 120 100 Average Speed 151 | 94 252 109 157 138 Slowest Speed 500 | 160 450 190 330 500 Overloaded Moves . | . . . . . Propulsion Burnouts . | . . . . . Robots Hopped . | . . . . . Cave-ins Triggered . | . . . . . Exploration Rate (%) 33 | 5 37 77 26 23 Regions Visited 4 Branch Regions 1 Pre-discovered Areas . | . . . . . Known Exits Taken . | . . . . . Unknown Exits Taken 4 | 1 1 1 1 . Scrap Searched 1 | . . 1 . . Spaces Dug . | . . . . . Terrain Destroyed 148 | . . . 132 16 Melee . | . . . . . Projectile . | . . . . . AOE 148 | . . . 132 16 Terrain Rammed . | . . . . . Walls Destroyed . | . . . . . Machines Disabled . | . . . . . Actions | -11 -10 -10 -9 -8 --------- Run | Yrd Mat Min Mat Mat Total 1618 | 114 312 650 217 325 Wait 225 | 9 17 172 . 27 Move 1168 | 71 244 436 187 230 Hop . | . . . . . Pick Up 49 | 13 13 8 6 9 Fast Attach 1 | . . . . 1 Attach 29 | 6 4 7 3 9 Detach 1 | . . . . 1 Swap 15 | 3 3 1 3 5 Drop 19 | 7 3 3 1 5 Fire 95 | 5 28 15 17 30 Melee 7 | . . . . 7 Ram 6 | . . 6 . . Kick 3 | . . 2 . 1 Crush . | . . . . . Escape Stasis . | . . . . . Rewire . | . . . . . Trap . | . . . . . Miscellaneous . | . . . . . Route ------- -11/Scrapyard -10/Materials -10/Mines -9/Materials -8/Materials History --------- Turn | Location | Event 2 | -11/Scrapyard | Met Revision 17 31 | -11/Scrapyard | Discovered new exit (range 15) 114 | -11/Scrapyard | Entered Materials 303 | -10/Materials | Build established: Mutant 303 | -10/Materials | Core integrity fell below 50% 339 | -10/Materials | Lost 5 parts (1p2n1u1w) 746 | -10/Materials | Discovered new exit (range 16) 843 | -10/Materials | Entered Mines 896 | -10/Mines | Escorted by a lone wolf Derelict 964 | -10/Mines | Core integrity fell below 20% 1112 | -10/Mines | Received a Rocket Launcher from a helpful Derelict 1486 | -10/Mines | Discovered new exit (range 5) 1533 | -10/Mines | Found a damaged Exp. Sensor Array with a note attached 1537 | -10/Mines | Found Prototype Device 1561 | -10/Mines | Entered Materials 1561 | -9/Materials | Accompanied by 1 ally 1561 | -9/Materials | Evolved 2 slots: Propulsion x1, Utility x1 1904 | -9/Materials | Discovered new exit (range 16) 1922 | -9/Materials | Entered another Materials area 1922 | -8/Materials | Evolved 2 slots: Propulsion x1, Utility x1 2027 | -8/Materials | Build established: Scavenger-Mutant 2159 | -8/Materials | Lost 3 parts (1n2w) 2354 | -8/Materials | Core integrity fell below 50% 2364 | -8/Materials | Lost 3 parts (1n2w) 2378 | -8/Materials | Core integrity fell below 20% 2383 | -8/Materials | Destroyed by G-47 Trooper with Particle Gun Last Messages --------------- 02365_ Imp. Aluminum Leg destroyed. 02366_ Ion Engine destroyed. 02366_ U-05 Engineer builds a Wall. 02366_ K-01 Serf collects debris. 02368_ G-47 Trooper destroyed. 02369_ Acquired 44 matter. 02370_ U-05 Engineer builds a Door. 02370_ K-01 Serf collects debris. 02371_ Med. Laser destroyed. 02372_ G-47 Trooper Lgt. Nuclear Core severed. 02372_ Katana destroyed. 02373_ Targeting Computer destroyed. 02374_ Cryofiber Web destroyed. 02374_ K-01 Serf collects debris. 02374_ Critical hit (Burn: +37). 02374_ U-05 Engineer lays Concrete. 02375_ Melee Analysis Suite destroyed. 02375_ G-47 Trooper destroyed. 02379_ K-01 Serf collects debris. 02380_ U-05 Engineer builds a Wall. Map ----- +----------------------------------------------------+ | ??????????????????????/ #????????? | | ??????????????????????# #????????? | | ??????????????????????# #????????? | | ??????????????????????# #????????? | | ??????????????????????# #????????? | | ??????????????????????# #????????? | | ??????????????????????# #????????? | | ??????????????????????# ########## | | ??????????????????????# # # | | ??????????????????????# # """ # | | ???????????############ # """"" # | | ????????? # """"" # | | ????????? + """"" # | | ????????? # """ # | | ?# #################+## # # | | ?# # ## # # # | | ?# # """ ##! [!+ # ! # | | ?# + """ ## =%# ########## | | ?# # """ ## *# #????????? | | ?# # ## != # #????????? | | ?# ###############/!= # #????????? | | ###+#####??????????#/!!*# #????????? | | #??????????#|=!k; #????????? | | #########??# [*g#g######???? | | ]]] + #??####uggg #???? | | ]]] """ #### #???# # #@%] #???? | | ?]] """ #??# #???### #== #???? | | ? """ #??# ##+##### #=# " " #???? | | ? #??# ## ! ## # "R" *#???? | | ? #?## ## T ## #*""" #???? | | ?+######### # ! ## ########???? | | + ## #??????????? | | ?########## # ## #??????????? | | ????########+## ## #??????????? | | ????# ######+## #?????##???? | | ????# #????# #?????# ???? | | ????# #????# #?????# ???? | | ????# #????# #?????# ???? | | ????################ ####### ???? | | ?????# + + ???? | | ?????# """" ###### ##+####### ???? | | ?????# """" #????# # #?# ???? | | ?????# """" #????# # T #?# ???? | | ?????# #????# # #?# ???? | | ?????# """" #????# # #?##???? | | ???????????????????# #?????????????? | | ???????????????????# #?????????????? | | ???????????????????# #######???????? | | ???????????????????# #???????? | | ???????????????????####### #???????? | +----------------------------------------------------+ Best States ------------- Heat Dissipation 45 Energy Generation 14 Energy Capacity 265 Matter Stores 300 Matter Capacity 300 Sight Range 16 Terrain Scan Density 10 Base Temperature (-) 100 Armor Coverage 150 Evasion (%) 55 Targeting Accuracy 5 Melee Accuracy 5 Recoil Reduction 2 Item Schematics ----------------- None Robot Schematics ------------------ None Fabricated ------------ Nothing Alien Tech Used ----------------- None Achievements -------------- None Challenges ------------ None Game ------ Seed MappingInsulatedBay Manual? 0 Play Time 00:23:16 Cumulative 60.7 hours Start 2024.07.12 @ 13:43:45 End 2024.07.12 @ 14:11:23 Sessions 1 Manual Loads 0 Difficulty Rogue Special Mode None Game No. 168 Rogue 168 Adventurer 0 Explorer 0 Win Type - Total 0 Types 0/0/0/0/0/0/0/0/0 Lore% 23 Gallery% 41 Achievement% 26 Wizard Run 0 Options --------- Layout 2 ASCII 0 Keyboard 0 Movement Mouse Keybinds 0 Fullscreen 1 Font 48/Smallcaps Map View 25x22 Zoom Use 88% Tactical HUD 1 Map Filters NONE Filters NONE Steam 1 RUN: 0bd40a77-c6cd-463a-ba3f-7259c614bcc4